[Event "*** SCC Grand Prix: Titled Tuesday Blitz"]
[Site "Chess.com"]
[Date "2020.09.08"]
[Round "5"]
[White "Konek-Gorbunok"]
[Black "SilviusTiberius"]
[Result "1-0"]
[WhiteElo "2335"]
[BlackElo "2465"]
[TimeControl "180+1"]
[EndTime "10:57:07 PDT"]
[Termination "Konek-Gorbunok won on time"]

1. d4 {[%clk 0:03:00.9]} 1... Nf6 {[%clk 0:02:43]} 2. Nf3 {[%clk 0:03:01.8]}
2... g6 {[%clk 0:02:40.4]} 3. c4 {[%clk 0:03:01.3]} 3... Bg7 {[%clk 0:02:40.2]}
4. Nc3 {[%clk 0:03:01.9]} 4... O-O {[%clk 0:02:40.8]} 5. e4 {[%clk 0:03:01.6]}
5... d6 {[%clk 0:02:41.3]} 6. Be2 {[%clk 0:03:02.5]} 6... e5 {[%clk 0:02:41.3]}
7. dxe5 {[%clk 0:03:03]} 7... dxe5 {[%clk 0:02:41.3]} 8. Qxd8 {[%clk 0:03:03.3]}
8... Rxd8 {[%clk 0:02:41.8]} 9. Bg5 {[%clk 0:03:04.1]} 9... Na6 {[%clk
0:02:37.2]} 10. Nd5 {[%clk 0:02:59.5]} 10... Rd6 {[%clk 0:02:36.7]} 11. Nxf6+
{[%clk 0:02:58.6]} 11... Bxf6 {[%clk 0:02:36.9]} 12. Bxf6 {[%clk 0:02:56]} 12...
Rxf6 {[%clk 0:02:37.4]} 13. O-O-O {[%clk 0:02:34.3]} 13... Bg4 {[%clk
0:02:35.2]} 14. h3 {[%clk 0:02:22]} 14... Bxf3 {[%clk 0:02:33.6]} 15. Bxf3
{[%clk 0:02:21.8]} 15... Rc6 {[%clk 0:02:17.2]} 16. b3 {[%clk 0:02:13.3]} 16...
Nc5 {[%clk 0:02:17.2]} 17. Rd5 {[%clk 0:02:07.1]} 17... Re8 {[%clk 0:02:14.1]}
18. Rhd1 {[%clk 0:02:04.4]} 18... a5 {[%clk 0:02:08.8]} 19. Kb2 {[%clk
0:01:50.7]} 19... Kf8 {[%clk 0:02:06.7]} 20. Rd8 {[%clk 0:01:43.9]} 20... Rxd8
{[%clk 0:02:02.2]} 21. Rxd8+ {[%clk 0:01:43.6]} 21... Ke7 {[%clk 0:02:02.9]} 22.
Ra8 {[%clk 0:01:36.9]} 22... b6 {[%clk 0:01:59.4]} 23. Kc3 {[%clk 0:01:35.6]}
23... Rd6 {[%clk 0:01:55.9]} 24. Rc8 {[%clk 0:01:26.2]} 24... Rd7 {[%clk
0:01:32.6]} 25. Kc2 {[%clk 0:00:55]} 25... h5 {[%clk 0:01:30.5]} 26. g4 {[%clk
0:00:53]} 26... h4 {[%clk 0:01:13]} 27. g5 {[%clk 0:00:53]} 27... Nd3 {[%clk
0:00:30]} 28. Bg4 {[%clk 0:00:42.9]} 28... Nb4+ {[%clk 0:00:29.8]} 29. Kc1
{[%clk 0:00:35.4]} 29... Nxa2+ {[%clk 0:00:24.4]} 30. Kc2 {[%clk 0:00:35.3]}
30... Nb4+ {[%clk 0:00:24]} 31. Kc1 {[%clk 0:00:35.4]} 31... Rd3 {[%clk
0:00:13.9]} 32. Rxc7+ {[%clk 0:00:30.9]} 32... Kf8 {[%clk 0:00:14.1]} 33. Rc8+
{[%clk 0:00:17.4]} 33... Kg7 {[%clk 0:00:14.2]} 34. Rc7 {[%clk 0:00:17.6]} 34...
Rxb3 {[%clk 0:00:09.7]} 35. Be6 {[%clk 0:00:17.4]} 35... Rc3+ {[%clk 0:00:09.6]}
36. Kd2 {[%clk 0:00:16.5]} 36... Rc2+ {[%clk 0:00:07.4]} 37. Ke1 {[%clk
0:00:15.2]} 37... Nd3+ {[%clk 0:00:07.1]} 38. Kd1 {[%clk 0:00:13.8]} 38... Rxf2
{[%clk 0:00:07.5]} 39. Bd5 {[%clk 0:00:13.7]} 39... a4 {[%clk 0:00:02.8]} 40.
Ra7 {[%clk 0:00:13.4]} 40... Kf8 {[%clk 0:00:01.8]} 41. Rxa4 {[%clk 0:00:07.5]}
41... Nb2+ {[%clk 0:00:01.7]} 42. Ke1 {[%clk 0:00:07.7]} 1-0

[Event "*** SCC Grand Prix: Titled Tuesday Blitz"]
[Site "Chess.com"]
[Date "2020.09.08"]
[Round "5"]
[White "omer1997"]
[Black "GothamChess"]
[Result "1-0"]
[WhiteElo "2405"]
[BlackElo "2563"]
[TimeControl "180+1"]
[EndTime "10:57:10 PDT"]
[Termination "omer1997 won by resignation"]

1. e4 {[%clk 0:03:00.9]} 1... c6 {[%clk 0:02:57.8]} 2. d4 {[%clk 0:02:58.7]}
2... d5 {[%clk 0:02:57.9]} 3. e5 {[%clk 0:02:59.6]} 3... Bf5 {[%clk 0:02:57]} 4.
h4 {[%clk 0:02:59.3]} 4... Qb6 {[%clk 0:02:52.4]} 5. Nc3 {[%clk 0:02:42.8]} 5...
h5 {[%clk 0:02:47.9]} 6. Bd3 {[%clk 0:02:36.1]} 6... Bxd3 {[%clk 0:02:47.4]} 7.
Qxd3 {[%clk 0:02:37]} 7... e6 {[%clk 0:02:48.1]} 8. Bd2 {[%clk 0:02:33.3]} 8...
Qa6 {[%clk 0:02:43.1]} 9. Qxa6 {[%clk 0:02:18.7]} 9... Nxa6 {[%clk 0:02:43]} 10.
Nf3 {[%clk 0:02:16.6]} 10... c5 {[%clk 0:02:39.5]} 11. Nb5 {[%clk 0:02:14.5]}
11... Kd7 {[%clk 0:02:32.9]} 12. O-O {[%clk 0:02:13.1]} 12... cxd4 {[%clk
0:02:29.5]} 13. Nfxd4 {[%clk 0:02:09.3]} 13... Bc5 {[%clk 0:02:27]} 14. Rac1
{[%clk 0:02:00.8]} 14... Rc8 {[%clk 0:02:24]} 15. Be3 {[%clk 0:01:56.7]} 15...
Ne7 {[%clk 0:02:22.5]} 16. Rfd1 {[%clk 0:01:48.1]} 16... Bxd4 {[%clk 0:01:59.7]}
17. Bxd4 {[%clk 0:01:44.7]} 17... Nf5 {[%clk 0:01:57.6]} 18. Nxa7 {[%clk
0:01:35.9]} 18... Rc4 {[%clk 0:01:43.8]} 19. Nb5 {[%clk 0:01:28.2]} 19... Rb4
{[%clk 0:01:39.7]} 20. c4 {[%clk 0:01:24.3]} 20... Rc8 {[%clk 0:01:30.7]} 21. b3
{[%clk 0:01:17]} 21... Nxd4 {[%clk 0:01:04]} 22. Nxd4 {[%clk 0:01:13.4]} 22...
Nc7 {[%clk 0:00:43.8]} 23. a3 {[%clk 0:01:02.3]} 23... Rb6 {[%clk 0:00:43.5]}
24. c5 {[%clk 0:01:02.9]} 24... Ra6 {[%clk 0:00:43.4]} 25. a4 {[%clk 0:01:02.8]}
25... Ra5 {[%clk 0:00:31.9]} 26. c6+ {[%clk 0:00:49.5]} 26... bxc6 {[%clk
0:00:30.4]} 27. Nxc6 {[%clk 0:00:50.4]} 27... Ra6 {[%clk 0:00:24.7]} 28. Nd4
{[%clk 0:00:46.5]} 28... Rb6 {[%clk 0:00:24.6]} 29. Kf1 {[%clk 0:00:40.4]} 29...
Rcb8 {[%clk 0:00:20.3]} 30. Ke2 {[%clk 0:00:37.7]} 30... Na6 {[%clk 0:00:19.8]}
31. Nb5 {[%clk 0:00:33.4]} 31... R8b7 {[%clk 0:00:16]} 32. Rc3 {[%clk
0:00:28.8]} 32... Nb4 {[%clk 0:00:14.2]} 33. Rdc1 {[%clk 0:00:21.2]} 33... Na2
{[%clk 0:00:14.6]} 34. Rc7+ {[%clk 0:00:21.2]} 34... Kd8 {[%clk 0:00:14.8]} 35.
Rc8+ {[%clk 0:00:21.2]} 35... Kd7 {[%clk 0:00:15.2]} 36. R1c7+ {[%clk
0:00:21.2]} 36... Rxc7 {[%clk 0:00:15.8]} 37. Rxc7+ {[%clk 0:00:22.1]} 37... Ke8
{[%clk 0:00:14.3]} 38. Kd3 {[%clk 0:00:18.7]} 38... Nb4+ {[%clk 0:00:06.5]} 39.
Kc3 {[%clk 0:00:17.7]} 39... Na6 {[%clk 0:00:04.5]} 40. Ra7 {[%clk 0:00:14.4]}
40... Nc5 {[%clk 0:00:03]} 41. Nd6+ {[%clk 0:00:12.8]} 41... Kf8 {[%clk
0:00:02.7]} 42. b4 {[%clk 0:00:11.3]} 42... Ne4+ {[%clk 0:00:02.4]} 43. Kb3
{[%clk 0:00:11.9]} 43... Nxd6 {[%clk 0:00:02.5]} 44. exd6 {[%clk 0:00:12]} 44...
Rxd6 {[%clk 0:00:03.4]} 45. a5 {[%clk 0:00:12]} 45... d4 {[%clk 0:00:04.1]} 46.
Kc2 {[%clk 0:00:10.7]} 46... Rd5 {[%clk 0:00:03]} 47. Rb7 {[%clk 0:00:08.2]}
47... d3+ {[%clk 0:00:02.6]} 48. Kd2 {[%clk 0:00:08.4]} 48... Rd6 {[%clk
0:00:02.5]} 49. b5 {[%clk 0:00:08.1]} 49... Rd4 {[%clk 0:00:03]} 50. a6 {[%clk
0:00:08.3]} 50... Ra4 {[%clk 0:00:03.5]} 51. a7 {[%clk 0:00:08.9]} 51... g6
{[%clk 0:00:02.2]} 52. Rb8+ {[%clk 0:00:08.4]} 52... Kg7 {[%clk 0:00:02.8]} 53.
a8=Q {[%clk 0:00:09.3]} 53... Rd4 {[%clk 0:00:02.8]} 54. Rd8 {[%clk 0:00:09.1]}
54... Kf6 {[%clk 0:00:03.6]} 55. Rxd4 {[%clk 0:00:08.7]} 1-0

[Event "*** SCC Grand Prix: Titled Tuesday Blitz"]
[Site "Chess.com"]
[Date "2020.09.08"]
[Round "5"]
[White "TigrVShlyape"]
[Black "UCantHandleDenker"]
[Result "1/2-1/2"]
[WhiteElo "2807"]
[BlackElo "2603"]
[TimeControl "180+1"]
[EndTime "10:57:11 PDT"]
[Termination "Game drawn - insufficient material"]

1. d4 {[%clk 0:03:00.5]} 1... Nf6 {[%clk 0:02:59.4]} 2. Nf3 {[%clk 0:03:01]}
2... g6 {[%clk 0:02:56.3]} 3. c3 {[%clk 0:02:59.6]} 3... Bg7 {[%clk 0:02:55.9]}
4. Bg5 {[%clk 0:02:59.7]} 4... O-O {[%clk 0:02:55.8]} 5. Nbd2 {[%clk 0:02:59.6]}
5... d6 {[%clk 0:02:55.8]} 6. e4 {[%clk 0:02:59.6]} 6... c5 {[%clk 0:02:54.6]}
7. d5 {[%clk 0:02:58.5]} 7... h6 {[%clk 0:02:52.6]} 8. Bh4 {[%clk 0:02:56.4]}
8... e6 {[%clk 0:02:52.9]} 9. dxe6 {[%clk 0:02:55.7]} 9... Bxe6 {[%clk
0:02:52.1]} 10. Bd3 {[%clk 0:02:47.9]} 10... Nc6 {[%clk 0:02:51.4]} 11. O-O
{[%clk 0:02:47.4]} 11... Re8 {[%clk 0:02:47.3]} 12. Re1 {[%clk 0:02:46.8]} 12...
Qc7 {[%clk 0:02:43.6]} 13. Qc2 {[%clk 0:02:44.3]} 13... Rad8 {[%clk 0:02:29]}
14. Bc4 {[%clk 0:02:37.3]} 14... Bxc4 {[%clk 0:02:21.7]} 15. Nxc4 {[%clk
0:02:36.6]} 15... b5 {[%clk 0:02:02]} 16. Bxf6 {[%clk 0:02:35.5]} 16... Bxf6
{[%clk 0:01:55.6]} 17. Ne3 {[%clk 0:02:36.4]} 17... Ne7 {[%clk 0:01:51.7]} 18.
a4 {[%clk 0:02:35.6]} 18... a6 {[%clk 0:01:51.3]} 19. axb5 {[%clk 0:02:35.2]}
19... axb5 {[%clk 0:01:52.2]} 20. Rad1 {[%clk 0:02:34.2]} 20... Bg7 {[%clk
0:01:51.8]} 21. h4 {[%clk 0:02:32.9]} 21... h5 {[%clk 0:01:46.7]} 22. Ng5 {[%clk
0:02:21.5]} 22... Bf6 {[%clk 0:01:45.1]} 23. Qb3 {[%clk 0:02:08.4]} 23... Bxg5
{[%clk 0:01:43.3]} 24. hxg5 {[%clk 0:02:08.5]} 24... Qb7 {[%clk 0:01:41.1]} 25.
Nd5 {[%clk 0:02:07.3]} 25... Nxd5 {[%clk 0:01:39.7]} 26. Qxd5 {[%clk 0:02:02.6]}
26... Qxd5 {[%clk 0:01:30]} 27. Rxd5 {[%clk 0:02:01.6]} 27... Re5 {[%clk
0:01:30.3]} 28. Red1 {[%clk 0:00:56.4]} 28... Rxe4 {[%clk 0:01:27.3]} 29. Kf1
{[%clk 0:00:46.8]} 29... Rg4 {[%clk 0:01:18.9]} 30. Rxc5 {[%clk 0:00:44.5]}
30... b4 {[%clk 0:00:53.8]} 31. Rcd5 {[%clk 0:00:37.8]} 31... bxc3 {[%clk
0:00:52.1]} 32. bxc3 {[%clk 0:00:37.4]} 32... Rc8 {[%clk 0:00:45.5]} 33. R1d3
{[%clk 0:00:33]} 33... Rc6 {[%clk 0:00:34.7]} 34. f3 {[%clk 0:00:28.7]} 34...
Rgc4 {[%clk 0:00:34]} 35. Rxd6 {[%clk 0:00:27]} 35... R6c5 {[%clk 0:00:34]} 36.
R6d5 {[%clk 0:00:22.1]} 36... Rxc3 {[%clk 0:00:33.6]} 37. Rxc5 {[%clk
0:00:18.4]} 37... Rxc5 {[%clk 0:00:33.2]} 38. f4 {[%clk 0:00:18.6]} 38... Rc4
{[%clk 0:00:32.9]} 39. g3 {[%clk 0:00:18.9]} 39... h4 {[%clk 0:00:32.3]} 40. Kg2
{[%clk 0:00:18.7]} 40... Kg7 {[%clk 0:00:30.5]} 41. Kh3 {[%clk 0:00:18.5]} 41...
hxg3 {[%clk 0:00:29.9]} 42. Kxg3 {[%clk 0:00:19.4]} 42... Rb4 {[%clk 0:00:30]}
43. Re3 {[%clk 0:00:19.6]} 43... Rb2 {[%clk 0:00:29.3]} 44. Rd3 {[%clk
0:00:18.1]} 44... Rb1 {[%clk 0:00:29.5]} 45. Re3 {[%clk 0:00:18.1]} 45... Rg1+
{[%clk 0:00:30]} 46. Kf2 {[%clk 0:00:18]} 46... Rd1 {[%clk 0:00:30.9]} 47. Kf3
{[%clk 0:00:18.3]} 47... Rd2 {[%clk 0:00:30.9]} 48. Kg3 {[%clk 0:00:18.4]} 48...
Rd7 {[%clk 0:00:30.4]} 49. Kf3 {[%clk 0:00:18.8]} 49... f6 {[%clk 0:00:29.3]}
50. gxf6+ {[%clk 0:00:18]} 50... Kxf6 {[%clk 0:00:30.2]} 51. Ra3 {[%clk
0:00:17.8]} 51... Rd6 {[%clk 0:00:30]} 52. Kg4 {[%clk 0:00:18]} 52... Rb6 {[%clk
0:00:29.5]} 53. Ra5 {[%clk 0:00:18.2]} 53... Rc6 {[%clk 0:00:29.3]} 54. Rd5
{[%clk 0:00:18.4]} 54... Rb6 {[%clk 0:00:29.3]} 55. Rc5 {[%clk 0:00:18.6]} 55...
Ra6 {[%clk 0:00:29.4]} 56. Rb5 {[%clk 0:00:19]} 56... Rc6 {[%clk 0:00:29.6]} 57.
Ra5 {[%clk 0:00:18.7]} 57... Rb6 {[%clk 0:00:30.1]} 58. Rc5 {[%clk 0:00:18.8]}
58... Ra6 {[%clk 0:00:30.5]} 59. Rb5 {[%clk 0:00:19]} 59... Rd6 {[%clk
0:00:30.6]} 60. Rc5 {[%clk 0:00:19.1]} 60... Rb6 {[%clk 0:00:30.5]} 61. Rd5
{[%clk 0:00:19.1]} 61... Ra6 {[%clk 0:00:30.5]} 62. Rc5 {[%clk 0:00:18.5]} 62...
Re6 {[%clk 0:00:29.3]} 63. Rd5 {[%clk 0:00:18.5]} 63... Re7 {[%clk 0:00:29.2]}
64. Rd6+ {[%clk 0:00:18.7]} 64... Re6 {[%clk 0:00:29]} 65. Rxe6+ {[%clk
0:00:18.9]} 65... Kxe6 {[%clk 0:00:29.9]} 66. Kg5 {[%clk 0:00:19.2]} 66... Kf7
{[%clk 0:00:30.3]} 67. f5 {[%clk 0:00:19.6]} 67... gxf5 {[%clk 0:00:31.2]} 68.
Kxf5 {[%clk 0:00:19.9]} 1/2-1/2

[Event "*** SCC Grand Prix: Titled Tuesday Blitz"]
[Site "Chess.com"]
[Date "2020.09.08"]
[Round "5"]
[White "wadsy27"]
[Black "Hard_Utilizator"]
[Result "1-0"]
[WhiteElo "2558"]
[BlackElo "2373"]
[TimeControl "180+1"]
[EndTime "10:57:12 PDT"]
[Termination "wadsy27 won on time"]

1. Nf3 {[%clk 0:03:00.9]} 1... Nf6 {[%clk 0:02:59.6]} 2. g3 {[%clk 0:03:00.6]}
2... d5 {[%clk 0:02:59.6]} 3. Bg2 {[%clk 0:02:58.9]} 3... e6 {[%clk 0:03:00]} 4.
c4 {[%clk 0:02:58.5]} 4... Be7 {[%clk 0:03:00]} 5. O-O {[%clk 0:02:57.9]} 5...
O-O {[%clk 0:03:00.5]} 6. b3 {[%clk 0:02:57.6]} 6... c5 {[%clk 0:03:00.2]} 7.
Bb2 {[%clk 0:02:57.6]} 7... d4 {[%clk 0:03:00.3]} 8. e3 {[%clk 0:02:57.6]} 8...
Nc6 {[%clk 0:03:00.8]} 9. exd4 {[%clk 0:02:57.2]} 9... Nxd4 {[%clk 0:03:01]} 10.
Nxd4 {[%clk 0:02:56.3]} 10... cxd4 {[%clk 0:03:01.6]} 11. Re1 {[%clk 0:02:54.5]}
11... a5 {[%clk 0:02:31.2]} 12. Na3 {[%clk 0:02:46.6]} 12... Bc5 {[%clk
0:02:15.2]} 13. d3 {[%clk 0:02:41.1]} 13... Re8 {[%clk 0:02:12.5]} 14. Nc2
{[%clk 0:02:36.9]} 14... e5 {[%clk 0:02:09.4]} 15. Qd2 {[%clk 0:02:31.1]} 15...
Qd6 {[%clk 0:02:02.5]} 16. a3 {[%clk 0:02:26.9]} 16... Bf5 {[%clk 0:01:56.2]}
17. b4 {[%clk 0:02:22.5]} 17... Ba7 {[%clk 0:01:21.3]} 18. c5 {[%clk 0:02:14.6]}
18... Qc7 {[%clk 0:01:17.9]} 19. Rac1 {[%clk 0:01:56.8]} 19... Rad8 {[%clk
0:01:15.7]} 20. Na1 {[%clk 0:01:54.6]} 20... axb4 {[%clk 0:01:08.8]} 21. axb4
{[%clk 0:01:53.7]} 21... Nd5 {[%clk 0:01:04.8]} 22. Nb3 {[%clk 0:01:49.1]} 22...
Be6 {[%clk 0:00:51.4]} 23. Ra1 {[%clk 0:01:36.6]} 23... b6 {[%clk 0:00:35.4]}
24. Rec1 {[%clk 0:01:29.8]} 24... bxc5 {[%clk 0:00:35.2]} 25. Nxc5 {[%clk
0:01:29.6]} 25... Bxc5 {[%clk 0:00:33]} 26. Rxc5 {[%clk 0:01:24.7]} 26... Qb6
{[%clk 0:00:32.5]} 27. Bxd5 {[%clk 0:01:19.9]} 27... Bxd5 {[%clk 0:00:30.5]} 28.
Raa5 {[%clk 0:01:19.4]} 28... Qe6 {[%clk 0:00:28.3]} 29. Qe2 {[%clk 0:01:09.2]}
29... f6 {[%clk 0:00:27.2]} 30. Ba3 {[%clk 0:00:34.8]} 30... Rd7 {[%clk
0:00:25.9]} 31. b5 {[%clk 0:00:33.6]} 31... Ba8 {[%clk 0:00:22.5]} 32. Ra6
{[%clk 0:00:28]} 32... Qh3 {[%clk 0:00:20.5]} 33. Qf1 {[%clk 0:00:27]} 33...
Qxf1+ {[%clk 0:00:18.2]} 34. Kxf1 {[%clk 0:00:26.6]} 34... h5 {[%clk 0:00:15]}
35. b6 {[%clk 0:00:25.6]} 35... Kh7 {[%clk 0:00:09.8]} 36. Rc7 {[%clk
0:00:23.1]} 36... Rxc7 {[%clk 0:00:09.3]} 37. bxc7 {[%clk 0:00:23.6]} 37... Rc8
{[%clk 0:00:09.5]} 38. Bd6 {[%clk 0:00:20.7]} 38... Bd5 {[%clk 0:00:08.5]} 39.
Rb6 {[%clk 0:00:20]} 39... Be6 {[%clk 0:00:06]} 40. Bxe5 {[%clk 0:00:18.8]}
40... fxe5 {[%clk 0:00:03.5]} 41. Rxe6 {[%clk 0:00:18.1]} 41... Rxc7 {[%clk
0:00:04]} 42. Rxe5 {[%clk 0:00:18.5]} 42... Rc3 {[%clk 0:00:04.5]} 43. Rxh5+
{[%clk 0:00:17.7]} 43... Kg6 {[%clk 0:00:04.7]} 44. Rd5 {[%clk 0:00:18.4]} 44...
Rxd3 {[%clk 0:00:04.9]} 45. Ke2 {[%clk 0:00:19.1]} 45... Ra3 {[%clk 0:00:02.2]}
46. Rd6+ {[%clk 0:00:19.7]} 46... Kf5 {[%clk 0:00:02]} 47. Rxd4 {[%clk
0:00:20.4]} 47... Ra2+ {[%clk 0:00:02.6]} 48. Kf1 {[%clk 0:00:21.1]} 48... Ra7
{[%clk 0:00:03.5]} 49. Kg2 {[%clk 0:00:21.6]} 49... g5 {[%clk 0:00:03.6]} 50.
Rd5+ {[%clk 0:00:21.4]} 50... Kg4 {[%clk 0:00:03.9]} 51. h3+ {[%clk 0:00:20.6]}
51... Kh5 {[%clk 0:00:04.5]} 52. Rd6 {[%clk 0:00:20.8]} 52... Ra4 {[%clk
0:00:03.3]} 53. g4+ {[%clk 0:00:20.3]} 1-0

[Event "*** SCC Grand Prix: Titled Tuesday Blitz"]
[Site "Chess.com"]
[Date "2020.09.08"]
[Round "5"]
[White "KarstenHansch"]
[Black "KiranManisha"]
[Result "1/2-1/2"]
[WhiteElo "2473"]
[BlackElo "2279"]
[TimeControl "180+1"]
[EndTime "10:57:12 PDT"]
[Termination "Game drawn - insufficient material"]

1. e4 {[%clk 0:02:50.8]} 1... c5 {[%clk 0:02:34.4]} 2. Nf3 {[%clk 0:02:50]} 2...
d6 {[%clk 0:02:33]} 3. Bb5+ {[%clk 0:02:50.4]} 3... Nd7 {[%clk 0:02:27.7]} 4. c3
{[%clk 0:02:49.6]} 4... a6 {[%clk 0:02:26.2]} 5. Ba4 {[%clk 0:02:49.7]} 5... Nf6
{[%clk 0:02:25.6]} 6. Qe2 {[%clk 0:02:49.1]} 6... b5 {[%clk 0:02:25.4]} 7. Bc2
{[%clk 0:02:48.7]} 7... e5 {[%clk 0:02:25.5]} 8. d4 {[%clk 0:02:48]} 8... Be7
{[%clk 0:02:26.4]} 9. O-O {[%clk 0:02:47.4]} 9... O-O {[%clk 0:02:27]} 10. Rd1
{[%clk 0:02:47.2]} 10... Bb7 {[%clk 0:02:26.7]} 11. dxe5 {[%clk 0:02:43.5]}
11... dxe5 {[%clk 0:02:26.6]} 12. Nxe5 {[%clk 0:02:43]} 12... Qc7 {[%clk
0:02:27.2]} 13. Nxd7 {[%clk 0:02:41.2]} 13... Nxd7 {[%clk 0:02:28.1]} 14. Nd2
{[%clk 0:02:33.8]} 14... c4 {[%clk 0:02:27.9]} 15. Nf3 {[%clk 0:02:32]} 15...
Rad8 {[%clk 0:02:26.9]} 16. Be3 {[%clk 0:02:30.9]} 16... Nc5 {[%clk 0:02:26.4]}
17. Bxc5 {[%clk 0:02:26.6]} 17... Bxc5 {[%clk 0:02:27.3]} 18. Rxd8 {[%clk
0:02:19.4]} 18... Rxd8 {[%clk 0:02:26.8]} 19. Rd1 {[%clk 0:02:19.5]} 19... Re8
{[%clk 0:02:27.1]} 20. Nd4 {[%clk 0:02:04.8]} 20... g6 {[%clk 0:02:15.4]} 21.
Kh1 {[%clk 0:01:54.1]} 21... Qf4 {[%clk 0:02:10.5]} 22. Qf3 {[%clk 0:01:49.4]}
22... Qxf3 {[%clk 0:02:03.2]} 23. gxf3 {[%clk 0:01:50.3]} 23... Kg7 {[%clk
0:01:59.1]} 24. Kg2 {[%clk 0:01:49.3]} 24... Kf6 {[%clk 0:01:59]} 25. Ne2 {[%clk
0:01:47.9]} 25... Bc6 {[%clk 0:01:54.8]} 26. Nf4 {[%clk 0:01:47.6]} 26... Ke5
{[%clk 0:01:50.4]} 27. Nd5 {[%clk 0:01:45.9]} 27... g5 {[%clk 0:01:48]} 28. Kg3
{[%clk 0:01:37.5]} 28... Rd8 {[%clk 0:01:45.1]} 29. Ne3 {[%clk 0:01:31.6]} 29...
Rxd1 {[%clk 0:01:38.1]} 30. Nxd1 {[%clk 0:01:32.5]} 30... h5 {[%clk 0:01:37.6]}
31. Ne3 {[%clk 0:01:20.3]} 31... f6 {[%clk 0:01:22.5]} 32. h3 {[%clk 0:01:10.3]}
32... Bd7 {[%clk 0:01:15.5]} 33. Nd5 {[%clk 0:01:03.9]} 33... Be6 {[%clk
0:01:09.7]} 34. f4+ {[%clk 0:00:48]} 34... gxf4+ {[%clk 0:01:08.1]} 35. Nxf4
{[%clk 0:00:48.9]} 35... h4+ {[%clk 0:01:08]} 36. Kf3 {[%clk 0:00:46.3]} 36...
Bd7 {[%clk 0:01:04.9]} 37. Ng6+ {[%clk 0:00:37.9]} 37... Kd6 {[%clk 0:01:04.4]}
38. Nxh4 {[%clk 0:00:37.8]} 38... Bxh3 {[%clk 0:01:04.2]} 39. Ng6 {[%clk
0:00:36.3]} 39... Bf1 {[%clk 0:00:59.5]} 40. Nf4 {[%clk 0:00:33.7]} 40... Ke5
{[%clk 0:00:58.8]} 41. Nd5 {[%clk 0:00:25.3]} 41... Bd3 {[%clk 0:00:43.5]} 42.
Bxd3 {[%clk 0:00:23]} 42... cxd3 {[%clk 0:00:44.4]} 43. Nc7 {[%clk 0:00:22.7]}
43... d2 {[%clk 0:00:37.6]} 44. Ke2 {[%clk 0:00:22.4]} 44... Bxf2 {[%clk
0:00:37]} 45. Kxd2 {[%clk 0:00:20.6]} 45... Kxe4 {[%clk 0:00:37.1]} 46. Nxa6
{[%clk 0:00:20.6]} 46... Bb6 {[%clk 0:00:30.6]} 47. Nb4 {[%clk 0:00:20.1]} 47...
f5 {[%clk 0:00:30]} 48. Ke2 {[%clk 0:00:19.3]} 48... f4 {[%clk 0:00:29.9]} 49.
b3 {[%clk 0:00:17.1]} 49... f3+ {[%clk 0:00:29.2]} 50. Kf1 {[%clk 0:00:17.4]}
50... Bc5 {[%clk 0:00:27]} 51. Nc6 {[%clk 0:00:15.9]} 51... Kd3 {[%clk
0:00:17.8]} 52. a4 {[%clk 0:00:16.2]} 52... bxa4 {[%clk 0:00:17]} 53. bxa4
{[%clk 0:00:17.1]} 53... Kxc3 {[%clk 0:00:17.1]} 54. a5 {[%clk 0:00:17.5]} 54...
Kc4 {[%clk 0:00:15.2]} 55. a6 {[%clk 0:00:18]} 55... Kb5 {[%clk 0:00:15.1]} 56.
a7 {[%clk 0:00:18.5]} 56... Bxa7 {[%clk 0:00:15.1]} 57. Nxa7+ {[%clk 0:00:19.4]}
57... Kb6 {[%clk 0:00:15.3]} 58. Kf2 {[%clk 0:00:19.8]} 58... Kxa7 {[%clk
0:00:15.3]} 59. Kxf3 {[%clk 0:00:20.7]} 1/2-1/2

[Event "*** SCC Grand Prix: Titled Tuesday Blitz"]
[Site "Chess.com"]
[Date "2020.09.08"]
[Round "5"]
[White "allvim"]
[Black "Grineva_Marianna"]
[Result "1-0"]
[WhiteElo "2368"]
[BlackElo "2214"]
[TimeControl "180+1"]
[EndTime "10:57:13 PDT"]
[Termination "allvim won by checkmate"]

1. e4 {[%clk 0:03:00.9]} 1... d6 {[%clk 0:02:58.5]} 2. d4 {[%clk 0:03:00.9]}
2... Nf6 {[%clk 0:02:58]} 3. Nc3 {[%clk 0:03:00.5]} 3... g6 {[%clk 0:02:58.2]}
4. Bc4 {[%clk 0:03:00.1]} 4... Bg7 {[%clk 0:02:55.7]} 5. f3 {[%clk 0:03:00.3]}
5... O-O {[%clk 0:02:54.1]} 6. Be3 {[%clk 0:03:00.7]} 6... c6 {[%clk 0:02:54.1]}
7. a4 {[%clk 0:03:01.1]} 7... d5 {[%clk 0:02:51.6]} 8. Bb3 {[%clk 0:02:53.1]}
8... dxe4 {[%clk 0:02:50]} 9. fxe4 {[%clk 0:02:54]} 9... Ng4 {[%clk 0:02:25.7]}
10. Bg5 {[%clk 0:02:31.9]} 10... Qxd4 {[%clk 0:02:08.8]} 11. Qxd4 {[%clk
0:02:25]} 11... Bxd4 {[%clk 0:02:09.7]} 12. Nh3 {[%clk 0:02:22.3]} 12... e5
{[%clk 0:02:02.9]} 13. O-O-O {[%clk 0:02:11.8]} 13... Ne3 {[%clk 0:02:00.2]} 14.
Bxe3 {[%clk 0:02:03.6]} 14... Bxe3+ {[%clk 0:01:59.7]} 15. Kb1 {[%clk
0:02:04.2]} 15... Na6 {[%clk 0:01:53.2]} 16. Rhf1 {[%clk 0:01:58.1]} 16... Nc5
{[%clk 0:01:43.8]} 17. Bc4 {[%clk 0:01:44.9]} 17... Be6 {[%clk 0:01:31.1]} 18.
Bxe6 {[%clk 0:01:44.4]} 18... Nxe6 {[%clk 0:01:32]} 19. Nf2 {[%clk 0:01:44.6]}
19... h5 {[%clk 0:01:25.3]} 20. Nd3 {[%clk 0:01:43.5]} 20... f6 {[%clk 0:01:18]}
21. g3 {[%clk 0:01:26.2]} 21... Rad8 {[%clk 0:01:14.4]} 22. a5 {[%clk
0:01:18.1]} 22... Kg7 {[%clk 0:01:09.9]} 23. Nb4 {[%clk 0:01:12.6]} 23... Bc5
{[%clk 0:01:04]} 24. Nd3 {[%clk 0:01:11.2]} 24... Bd6 {[%clk 0:00:57.7]} 25. Ne2
{[%clk 0:01:00.6]} 25... b6 {[%clk 0:00:52.4]} 26. axb6 {[%clk 0:00:56.7]} 26...
axb6 {[%clk 0:00:53.3]} 27. c3 {[%clk 0:00:55.3]} 27... Nc5 {[%clk 0:00:46.8]}
28. Nxc5 {[%clk 0:00:36.5]} 28... Bxc5 {[%clk 0:00:47.7]} 29. Kc2 {[%clk
0:00:37.2]} 29... Kf7 {[%clk 0:00:44.9]} 30. Nc1 {[%clk 0:00:34.3]} 30... Ke6
{[%clk 0:00:41.8]} 31. Nd3 {[%clk 0:00:33.9]} 31... Be7 {[%clk 0:00:32.4]} 32.
Ra1 {[%clk 0:00:30.5]} 32... Ra8 {[%clk 0:00:29.1]} 33. Kb3 {[%clk 0:00:23.9]}
33... f5 {[%clk 0:00:22.7]} 34. exf5+ {[%clk 0:00:20.4]} 34... gxf5 {[%clk
0:00:23.6]} 35. Rae1 {[%clk 0:00:20]} 35... e4 {[%clk 0:00:20.3]} 36. Nf4+
{[%clk 0:00:19.9]} 36... Kf6 {[%clk 0:00:16.9]} 37. Nxh5+ {[%clk 0:00:18.5]}
37... Ke5 {[%clk 0:00:17.3]} 38. Nf4 {[%clk 0:00:18.4]} 38... Rf6 {[%clk
0:00:15.4]} 39. Nd3+ {[%clk 0:00:17.1]} 39... Kd5 {[%clk 0:00:15.7]} 40. Nf4+
{[%clk 0:00:17.3]} 40... Kc5 {[%clk 0:00:14]} 41. Kc2 {[%clk 0:00:11.7]} 41...
Rh6 {[%clk 0:00:13.4]} 42. h4 {[%clk 0:00:11.7]} 42... Bd6 {[%clk 0:00:13]} 43.
b4+ {[%clk 0:00:08.6]} 43... Kb5 {[%clk 0:00:12.2]} 44. Ne2 {[%clk 0:00:09.4]}
44... Rf8 {[%clk 0:00:09.8]} 45. Ra1 {[%clk 0:00:07.2]} 45... Kc4 {[%clk
0:00:09.8]} 46. Nd4 {[%clk 0:00:06.4]} 46... Bxg3 {[%clk 0:00:08.9]} 47. Nxf5
{[%clk 0:00:05.1]} 47... Rg6 {[%clk 0:00:05.7]} 48. Ne3+ {[%clk 0:00:04.4]}
48... Kb5 {[%clk 0:00:03.9]} 49. Kb3 {[%clk 0:00:05.1]} 49... Re8 {[%clk
0:00:03.1]} 50. c4# {[%clk 0:00:05.6]} 1-0